[Event "Titled Tuesday Blitz March 22 Early 2022"]
[White "Agasarov, Benik"]
[Black "Ruge, Edison"]
[WhiteFideId "13314823"]
[BlackFideId "4401000"]
[WhiteElo "2547"]
[BlackElo "2175"]
[Result "0-1"]
[Round "10"]
[TimeControl "180+1"]
[Date "2022.03.22"]
[WhiteClock "0:00:03"]
[BlackClock "0:00:42"]

1. d4 {[%clk 0:02:51]}  d5 {[%clk 0:02:58]} 2. Bf4 {[%clk 0:02:50]}  Nf6 {[%clk 0:02:56]} 3. e3 {[%clk 0:02:50]}  e6 {[%clk 0:02:57]} 4. Nf3 {[%clk 0:02:44]}  Bd6 {[%clk 0:02:57]} 5. Nbd2 {[%clk 0:02:43]}  O-O {[%clk 0:02:57]} 6. Bd3 {[%clk 0:02:40]}  c5 {[%clk 0:02:56]} 7. c3 {[%clk 0:02:31]}  Qc7 {[%clk 0:02:54]} 8. Bxd6 {[%clk 0:02:16]}  Qxd6 {[%clk 0:02:53]} 9. Ne5 {[%clk 0:02:17]}  Nc6 {[%clk 0:02:50]} 10. f4 {[%clk 0:02:17]}  g6 {[%clk 0:02:42]} 11. O-O {[%clk 0:02:14]}  Nd7 {[%clk 0:02:35]} 12. Qe1 {[%clk 0:02:01]}  Kg7 {[%clk 0:02:33]} 13. Qh4 {[%clk 0:01:59]}  f6 {[%clk 0:02:32]} 14. Ng4 {[%clk 0:01:57]}  Ne7 {[%clk 0:02:14]} 15. Qh6+ {[%clk 0:01:55]}  Kg8 {[%clk 0:02:13]} 16. Rf3 {[%clk 0:01:53]}  Nf5 {[%clk 0:02:12]} 17. Bxf5 {[%clk 0:01:51]}  exf5 {[%clk 0:02:12]} 18. Rh3 {[%clk 0:01:50]}  Rf7 {[%clk 0:02:09]} 19. Nf2 {[%clk 0:01:44]}  Nf8 {[%clk 0:02:09]} 20. Re1 {[%clk 0:01:43]}  c4 {[%clk 0:02:09]} 21. Kh1 {[%clk 0:01:35]}  Bd7 {[%clk 0:02:08]} 22. Nf1 {[%clk 0:01:34]}  Re8 {[%clk 0:02:06]} 23. Ng3 {[%clk 0:01:34]}  Rfe7 {[%clk 0:01:58]} 24. Nd1 {[%clk 0:01:23]}  b5 {[%clk 0:01:45]} 25. Kg1 {[%clk 0:01:13]}  a5 {[%clk 0:01:44]} 26. Kf2 {[%clk 0:01:11]}  b4 {[%clk 0:01:42]} 27. Kf3 {[%clk 0:01:08]}  a4 {[%clk 0:01:41]} 28. cxb4 {[%clk 0:00:54]}  Qxb4 {[%clk 0:01:39]} 29. Nc3 {[%clk 0:00:54]}  a3 {[%clk 0:01:15]} 30. Nh5 {[%clk 0:00:35]}  Rf7 {[%clk 0:00:58]} 31. Re2 {[%clk 0:00:01]}  axb2 {[%clk 0:00:55]} 32. Nxd5 {[%clk 0:00:02]}  Bc6 {[%clk 0:00:55]} 33. Nxf6+ {[%clk 0:00:02]}  Rxf6 {[%clk 0:00:52]} 34. e4 {[%clk 0:00:02]}  Bxd5 {[%clk 0:00:51]} 35. exd5 {[%clk 0:00:03]}  Rxe2 {[%clk 0:00:43]} 36. Kxe2 {[%clk 0:00:03]}  b1=Q {[%clk 0:00:42]} 0-1


[Site "https://www.chess.com"]

[Event "Titled Tuesday Blitz March 22 Early 2022"]
[White "Altman, Joshua"]
[Black "Moroni, Luca Jr"]
[WhiteFideId "426210"]
[BlackFideId "865834"]
[WhiteElo "1945"]
[BlackElo "2573"]
[Result "0-1"]
[Round "10"]
[TimeControl "180+1"]
[Date "2022.03.22"]
[WhiteClock "0:00:08"]
[BlackClock "0:00:05"]

1. d4 {[%clk 0:03:00]}  e5 {[%clk 0:02:50]} 2. dxe5 {[%clk 0:03:00]}  d6 {[%clk 0:02:48]} 3. Nf3 {[%clk 0:02:58]}  Nc6 {[%clk 0:02:47]} 4. e4 {[%clk 0:02:49]}  Nxe5 {[%clk 0:02:43]} 5. Nxe5 {[%clk 0:02:48]}  dxe5 {[%clk 0:02:44]} 6. Qxd8+ {[%clk 0:02:49]}  Kxd8 {[%clk 0:02:45]} 7. Bc4 {[%clk 0:02:47]}  f6 {[%clk 0:02:45]} 8. Nc3 {[%clk 0:02:45]}  c6 {[%clk 0:02:45]} 9. Be3 {[%clk 0:02:45]}  Kc7 {[%clk 0:02:45]} 10. O-O-O {[%clk 0:02:46]}  Bb4 {[%clk 0:02:33]} 11. Rd3 {[%clk 0:02:35]}  Bxc3 {[%clk 0:02:26]} 12. Rxc3 {[%clk 0:02:35]}  b6 {[%clk 0:02:23]} 13. Bd5 {[%clk 0:02:26]}  Ne7 {[%clk 0:02:21]} 14. b4 {[%clk 0:02:22]}  Bd7 {[%clk 0:02:15]} 15. b5 {[%clk 0:02:19]}  Nxd5 {[%clk 0:02:15]} 16. exd5 {[%clk 0:02:19]}  c5 {[%clk 0:02:16]} 17. a4 {[%clk 0:02:16]}  Kd6 {[%clk 0:02:12]} 18. Rd1 {[%clk 0:02:14]}  a6 {[%clk 0:02:11]} 19. a5 {[%clk 0:02:04]}  axb5 {[%clk 0:02:01]} 20. axb6 {[%clk 0:02:02]}  c4 {[%clk 0:01:55]} 21. Kb2 {[%clk 0:01:56]}  Bc8 {[%clk 0:01:33]} 22. Ra3 {[%clk 0:01:49]}  Bb7 {[%clk 0:01:31]} 23. Ra7 {[%clk 0:01:33]}  Rxa7 {[%clk 0:01:30]} 24. bxa7 {[%clk 0:01:34]}  b4 {[%clk 0:01:24]} 25. Ra1 {[%clk 0:01:27]}  Bxd5 {[%clk 0:01:19]} 26. Ra6+ {[%clk 0:01:27]}  Kc7 {[%clk 0:01:12]} 27. Rb6 {[%clk 0:01:23]}  b3 {[%clk 0:00:59]} 28. cxb3 {[%clk 0:01:21]}  cxb3 {[%clk 0:01:00]} 29. Rb5 {[%clk 0:01:12]}  Bxg2 {[%clk 0:00:55]} 30. Kxb3 {[%clk 0:01:11]}  Ba8 {[%clk 0:00:51]} 31. Rc5+ {[%clk 0:01:06]}  Kd7 {[%clk 0:00:47]} 32. Rb5 {[%clk 0:01:05]}  Rc8 {[%clk 0:00:45]} 33. Rb8 {[%clk 0:00:59]}  Kc7 {[%clk 0:00:44]} 34. Bb6+ {[%clk 0:00:56]}  Kd7 {[%clk 0:00:44]} 35. Kb4 {[%clk 0:00:52]}  h5 {[%clk 0:00:35]} 36. h4 {[%clk 0:00:51]}  Bd5 {[%clk 0:00:31]} 37. Be3 {[%clk 0:00:43]}  Rc4+ {[%clk 0:00:27]} 38. Kb5 {[%clk 0:00:40]}  Rxh4 {[%clk 0:00:28]} 39. a8=Q {[%clk 0:00:37]}  Bxa8 {[%clk 0:00:28]} 40. Rxa8 {[%clk 0:00:38]}  g5 {[%clk 0:00:24]} 41. Rf8 {[%clk 0:00:35]}  Ke6 {[%clk 0:00:24]} 42. Kc6 {[%clk 0:00:34]}  Rc4+ {[%clk 0:00:23]} 43. Kb5 {[%clk 0:00:34]}  Rc2 {[%clk 0:00:23]} 44. Rh8 {[%clk 0:00:32]}  h4 {[%clk 0:00:23]} 45. Rh6 {[%clk 0:00:31]}  Kf5 {[%clk 0:00:23]} 46. Rh8 {[%clk 0:00:31]}  e4 {[%clk 0:00:22]} 47. Kb4 {[%clk 0:00:31]}  Rc6 {[%clk 0:00:21]} 48. Kb3 {[%clk 0:00:31]}  Kg4 {[%clk 0:00:20]} 49. Rh6 {[%clk 0:00:29]}  Kf5 {[%clk 0:00:16]} 50. Kb4 {[%clk 0:00:29]}  Rc8 {[%clk 0:00:14]} 51. Kb5 {[%clk 0:00:28]}  Rf8 {[%clk 0:00:09]} 52. Kc5 {[%clk 0:00:28]}  Kg4 {[%clk 0:00:09]} 53. Kd5 {[%clk 0:00:27]}  f5 {[%clk 0:00:10]} 54. Bc5 {[%clk 0:00:19]}  Re8 {[%clk 0:00:07]} 55. Bd6 {[%clk 0:00:18]}  f4 {[%clk 0:00:05]} 56. Be5 {[%clk 0:00:17]}  e3 {[%clk 0:00:03]} 57. fxe3 {[%clk 0:00:10]}  fxe3 {[%clk 0:00:04]} 58. Bc3 {[%clk 0:00:11]}  e2 {[%clk 0:00:04]} 59. Be1 {[%clk 0:00:11]}  Rd8+ {[%clk 0:00:04]} 60. Ke4 {[%clk 0:00:10]}  Rd1 {[%clk 0:00:05]} 61. Ke3 {[%clk 0:00:03]}  Rxe1 {[%clk 0:00:05]} 62. Kf2 {[%clk 0:00:04]}  Ra1 {[%clk 0:00:04]} 63. Kxe2 {[%clk 0:00:05]}  Kg3 {[%clk 0:00:04]} 64. Ke3 {[%clk 0:00:05]}  g4 {[%clk 0:00:04]} 65. Rg6 {[%clk 0:00:06]}  h3 {[%clk 0:00:05]} 66. Rh6 {[%clk 0:00:07]}  Re1+ {[%clk 0:00:04]} 67. Kd2 {[%clk 0:00:07]}  Re8 {[%clk 0:00:05]} 68. Kd3 {[%clk 0:00:07]}  Kg2 {[%clk 0:00:05]} 69. Kd2 {[%clk 0:00:07]}  g3 {[%clk 0:00:05]} 70. Kd3 {[%clk 0:00:08]}  h2 {[%clk 0:00:06]} 71. Rg6 {[%clk 0:00:08]}  h1=Q {[%clk 0:00:05]} 0-1


[Site "https://www.chess.com"]

[Event "Titled Tuesday Blitz March 22 Early 2022"]
[White "Bachmann, Axel"]
[Black "Kotepalli, Sai Nirupama"]
[WhiteFideId "3700488"]
[BlackFideId "5039444"]
[WhiteElo "2587"]
[BlackElo "2404"]
[Result "0-1"]
[Round "10"]
[TimeControl "180+1"]
[Date "2022.03.22"]
[WhiteClock "0:00:02"]
[BlackClock "0:00:13"]

1. d4 {[%clk 0:02:55]}  g6 {[%clk 0:02:58]} 2. g3 {[%clk 0:02:55]}  Bg7 {[%clk 0:02:58]} 3. Bg2 {[%clk 0:02:55]}  e6 {[%clk 0:02:58]} 4. e4 {[%clk 0:02:55]}  Ne7 {[%clk 0:02:54]} 5. Ne2 {[%clk 0:02:54]}  d5 {[%clk 0:02:53]} 6. e5 {[%clk 0:02:52]}  c5 {[%clk 0:02:52]} 7. c3 {[%clk 0:02:51]}  Nbc6 {[%clk 0:02:52]} 8. O-O {[%clk 0:02:50]}  Qb6 {[%clk 0:02:51]} 9. a4 {[%clk 0:02:45]}  cxd4 {[%clk 0:02:44]} 10. cxd4 {[%clk 0:02:44]}  Nf5 {[%clk 0:02:43]} 11. a5 {[%clk 0:02:35]}  Nxa5 {[%clk 0:02:42]} 12. g4 {[%clk 0:02:15]}  Ne7 {[%clk 0:02:26]} 13. Qa4+ {[%clk 0:02:13]}  Nac6 {[%clk 0:02:24]} 14. Nbc3 {[%clk 0:02:07]}  Bd7 {[%clk 0:02:21]} 15. Nb5 {[%clk 0:02:04]}  Nxe5 {[%clk 0:02:13]} 16. Nec3 {[%clk 0:01:42]}  Nxg4 {[%clk 0:01:43]} 17. Bg5 {[%clk 0:01:39]}  Nf5 {[%clk 0:01:34]} 18. Bxd5 {[%clk 0:01:28]}  Nxd4 {[%clk 0:01:25]} 19. Bxb7 {[%clk 0:01:12]}  Qxb7 {[%clk 0:00:36]} 20. Nd6+ {[%clk 0:01:04]}  Kf8 {[%clk 0:00:36]} 21. Nxb7 {[%clk 0:00:52]}  Bxa4 {[%clk 0:00:36]} 22. Rxa4 {[%clk 0:00:49]}  Nf3+ {[%clk 0:00:35]} 23. Kg2 {[%clk 0:00:43]}  Ngxh2 {[%clk 0:00:35]} 24. Rd1 {[%clk 0:00:34]}  Nxg5 {[%clk 0:00:31]} 25. Kxh2 {[%clk 0:00:29]}  Bf6 {[%clk 0:00:24]} 26. Kg2 {[%clk 0:00:18]}  Kg7 {[%clk 0:00:20]} 27. Rd7 {[%clk 0:00:18]}  Bxc3 {[%clk 0:00:16]} 28. bxc3 {[%clk 0:00:17]}  Rhc8 {[%clk 0:00:16]} 29. Rf4 {[%clk 0:00:11]}  h5 {[%clk 0:00:13]} 30. Nd6 {[%clk 0:00:11]}  Rf8 {[%clk 0:00:13]} 31. c4 {[%clk 0:00:11]}  Rad8 {[%clk 0:00:13]} 32. Rxd8 {[%clk 0:00:07]}  Rxd8 {[%clk 0:00:13]} 33. c5 {[%clk 0:00:08]}  e5 {[%clk 0:00:12]} 34. Ra4 {[%clk 0:00:07]}  Ne6 {[%clk 0:00:12]} 35. Nb7 {[%clk 0:00:05]}  Rc8 {[%clk 0:00:11]} 36. Ra5 {[%clk 0:00:03]}  Rc7 {[%clk 0:00:09]} 37. Rxa7 {[%clk 0:00:02]}  Nxc5 {[%clk 0:00:09]} 38. Nxc5 {[%clk 0:00:01]}  Rxa7 {[%clk 0:00:09]} 39. Nd3 {[%clk 0:00:02]}  Re7 {[%clk 0:00:09]} 40. Nc5 {[%clk 0:00:02]}  f5 {[%clk 0:00:10]} 41. Nd3 {[%clk 0:00:02]}  Kf6 {[%clk 0:00:10]} 42. Nb4 {[%clk 0:00:02]}  e4 {[%clk 0:00:10]} 43. Nd5+ {[%clk 0:00:03]}  Ke6 {[%clk 0:00:11]} 44. Nf4+ {[%clk 0:00:03]}  Kf7 {[%clk 0:00:10]} 45. Nd5 {[%clk 0:00:03]}  Re5 {[%clk 0:00:11]} 46. Ne3 {[%clk 0:00:03]}  g5 {[%clk 0:00:11]} 47. Nc4 {[%clk 0:00:03]}  Ke6 {[%clk 0:00:12]} 48. Ne3 {[%clk 0:00:04]}  f4 {[%clk 0:00:12]} 49. Nc4 {[%clk 0:00:05]}  Kd5 {[%clk 0:00:12]} 50. Nb6+ {[%clk 0:00:04]}  Kd4 {[%clk 0:00:12]} 51. Nd7 {[%clk 0:00:04]}  e3 {[%clk 0:00:12]} 52. fxe3+ {[%clk 0:00:03]}  Rxe3 {[%clk 0:00:13]} 53. Nf6 {[%clk 0:00:02]}  h4 {[%clk 0:00:12]} 54. Ng4 {[%clk 0:00:02]}  Rg3+ {[%clk 0:00:12]} 55. Kf2 {[%clk 0:00:02]}  Rxg4 {[%clk 0:00:13]} 0-1


[Site "https://www.chess.com"]

[Event "Titled Tuesday Blitz March 22 Early 2022"]
[White "Bashirli, Saadat"]
[Black "Osmonbekov, Talaibek"]
[WhiteFideId "13429990"]
[BlackFideId "2017253"]
[WhiteElo "1173"]
[BlackElo "2135"]
[Result "1-0"]
[Round "10"]
[TimeControl "180+1"]
[Date "2022.03.22"]
[WhiteClock "0:01:25"]
[BlackClock "0:00:01"]

1. d4 {[%clk 0:03:00]}  e6 {[%clk 0:02:59]} 2. e4 {[%clk 0:02:59]}  d5 {[%clk 0:02:59]} 3. Nc3 {[%clk 0:02:58]}  Nf6 {[%clk 0:02:58]} 4. e5 {[%clk 0:02:54]}  Nfd7 {[%clk 0:02:58]} 5. Be2 {[%clk 0:02:49]}  c5 {[%clk 0:02:59]} 6. Be3 {[%clk 0:02:44]}  Nc6 {[%clk 0:02:55]} 7. Nf3 {[%clk 0:02:43]}  cxd4 {[%clk 0:02:41]} 8. Bxd4 {[%clk 0:02:42]}  Nxd4 {[%clk 0:02:25]} 9. Qxd4 {[%clk 0:02:41]}  Bc5 {[%clk 0:02:24]} 10. Qd2 {[%clk 0:02:34]}  O-O {[%clk 0:02:13]} 11. O-O {[%clk 0:02:30]}  f6 {[%clk 0:02:05]} 12. exf6 {[%clk 0:02:29]}  Nxf6 {[%clk 0:02:05]} 13. Bd3 {[%clk 0:02:28]}  Qe8 {[%clk 0:01:57]} 14. Rfe1 {[%clk 0:02:28]}  Qh5 {[%clk 0:01:54]} 15. Re5 {[%clk 0:02:25]}  Qe8 {[%clk 0:01:29]} 16. Rae1 {[%clk 0:02:23]}  Bd6 {[%clk 0:01:24]} 17. R5e2 {[%clk 0:02:20]}  Bd7 {[%clk 0:01:19]} 18. Ng5 {[%clk 0:02:17]}  e5 {[%clk 0:01:19]} 19. Nxd5 {[%clk 0:02:06]}  Nxd5 {[%clk 0:01:11]} 20. Bxh7+ {[%clk 0:02:05]}  Kh8 {[%clk 0:01:11]} 21. Qxd5 {[%clk 0:02:04]}  Be7 {[%clk 0:00:44]} 22. Rxe5 {[%clk 0:02:00]}  Bxg5 {[%clk 0:00:32]} 23. Rxe8 {[%clk 0:01:52]}  Raxe8 {[%clk 0:00:33]} 24. Rxe8 {[%clk 0:01:51]}  Rxe8 {[%clk 0:00:33]} 25. h3 {[%clk 0:01:44]}  Re1+ {[%clk 0:00:32]} 26. Kh2 {[%clk 0:01:43]}  Bf4+ {[%clk 0:00:21]} 27. g3 {[%clk 0:01:43]}  Kxh7 {[%clk 0:00:21]} 28. Qxd7 {[%clk 0:01:38]}  Bc1 {[%clk 0:00:19]} 29. Qd3+ {[%clk 0:01:37]}  Kh8 {[%clk 0:00:18]} 30. b3 {[%clk 0:01:36]}  Bb2 {[%clk 0:00:15]} 31. c4 {[%clk 0:01:33]}  Bf6 {[%clk 0:00:14]} 32. Qf3 {[%clk 0:01:31]}  Ra1 {[%clk 0:00:12]} 33. Qxb7 {[%clk 0:01:31]}  Rxa2 {[%clk 0:00:13]} 34. Qf3 {[%clk 0:01:30]}  a5 {[%clk 0:00:09]} 35. Kg2 {[%clk 0:01:29]}  Ra3 {[%clk 0:00:08]} 36. c5 {[%clk 0:01:27]}  a4 {[%clk 0:00:07]} 37. Qa8+ {[%clk 0:01:26]}  Kh7 {[%clk 0:00:07]} 38. bxa4 {[%clk 0:01:27]}  Ra2 {[%clk 0:00:07]} 39. c6 {[%clk 0:01:26]}  Bd4 {[%clk 0:00:06]} 40. Qf8 {[%clk 0:01:25]}  Rxa4 {[%clk 0:00:01]} 41. c7 {[%clk 0:01:25]} 1-0


[Site "https://www.chess.com"]

[Event "Titled Tuesday Blitz March 22 Early 2022"]
[White "Batsiashvili, Nino"]
[Black "Skliarov, Viktor"]
[WhiteFideId "13602993"]
[BlackFideId "14106736"]
[WhiteElo "2192"]
[BlackElo "2229"]
[Result "0-1"]
[Round "10"]
[TimeControl "180+1"]
[Date "2022.03.22"]
[WhiteClock "0:00:09"]
[BlackClock "0:00:06"]

1. d4 {[%clk 0:03:00]}  Nf6 {[%clk 0:02:59]} 2. c4 {[%clk 0:02:59]}  e6 {[%clk 0:02:59]} 3. Nc3 {[%clk 0:02:59]}  Bb4 {[%clk 0:02:59]} 4. Nf3 {[%clk 0:02:59]}  b6 {[%clk 0:02:59]} 5. e3 {[%clk 0:02:58]}  Bb7 {[%clk 0:02:59]} 6. Bd3 {[%clk 0:02:58]}  Ne4 {[%clk 0:02:59]} 7. O-O {[%clk 0:02:58]}  Bxc3 {[%clk 0:02:59]} 8. bxc3 {[%clk 0:02:59]}  O-O {[%clk 0:02:58]} 9. Nd2 {[%clk 0:02:59]}  f5 {[%clk 0:02:58]} 10. f3 {[%clk 0:02:58]}  Nxd2 {[%clk 0:02:58]} 11. Bxd2 {[%clk 0:02:58]}  c5 {[%clk 0:02:59]} 12. Rb1 {[%clk 0:02:44]}  d6 {[%clk 0:02:46]} 13. e4 {[%clk 0:02:30]}  fxe4 {[%clk 0:02:32]} 14. fxe4 {[%clk 0:02:23]}  Nc6 {[%clk 0:02:27]} 15. Qg4 {[%clk 0:02:11]}  Qd7 {[%clk 0:01:56]} 16. e5 {[%clk 0:02:06]}  dxe5 {[%clk 0:01:18]} 17. d5 {[%clk 0:02:05]}  Ne7 {[%clk 0:01:18]} 18. Rbe1 {[%clk 0:01:32]}  Ng6 {[%clk 0:00:46]} 19. Bxg6 {[%clk 0:01:23]}  hxg6 {[%clk 0:00:47]} 20. Rxf8+ {[%clk 0:01:22]}  Rxf8 {[%clk 0:00:46]} 21. Rxe5 {[%clk 0:01:23]}  Qf7 {[%clk 0:00:13]} 22. Qxe6 {[%clk 0:01:22]}  Bc8 {[%clk 0:00:14]} 23. Qxf7+ {[%clk 0:01:22]}  Kxf7 {[%clk 0:00:15]} 24. Kf2 {[%clk 0:01:17]}  Re8 {[%clk 0:00:15]} 25. Rg5 {[%clk 0:01:06]}  Ba6 {[%clk 0:00:15]} 26. Rg4 {[%clk 0:01:07]}  Re5 {[%clk 0:00:09]} 27. h4 {[%clk 0:01:03]}  Re8 {[%clk 0:00:09]} 28. a3 {[%clk 0:01:00]}  Re5 {[%clk 0:00:09]} 29. Bg5 {[%clk 0:00:58]}  Ke8 {[%clk 0:00:06]} 30. d6 {[%clk 0:00:56]}  Kd7 {[%clk 0:00:06]} 31. Be7 {[%clk 0:00:56]}  Re6 {[%clk 0:00:06]} 32. Rg5 {[%clk 0:00:44]}  Ke8 {[%clk 0:00:05]} 33. h5 {[%clk 0:00:42]}  gxh5 {[%clk 0:00:05]} 34. Rxg7 {[%clk 0:00:43]}  Bxc4 {[%clk 0:00:04]} 35. Rg8+ {[%clk 0:00:32]}  Kd7 {[%clk 0:00:05]} 36. Rd8+ {[%clk 0:00:31]}  Kc6 {[%clk 0:00:05]} 37. Bg5 {[%clk 0:00:24]}  Re2+ {[%clk 0:00:04]} 38. Kg3 {[%clk 0:00:24]}  Re1 {[%clk 0:00:03]} 39. Bf4 {[%clk 0:00:20]}  Rd1 {[%clk 0:00:03]} 40. Rc8+ {[%clk 0:00:20]}  Kd7 {[%clk 0:00:03]} 41. Rc7+ {[%clk 0:00:20]}  Ke6 {[%clk 0:00:03]} 42. Rxa7 {[%clk 0:00:21]}  Bb5 {[%clk 0:00:01]} 43. Re7+ {[%clk 0:00:20]}  Kf6 {[%clk 0:00:02]} 44. Rb7 {[%clk 0:00:19]}  Bc6 {[%clk 0:00:02]} 45. Rxb6 {[%clk 0:00:20]}  Be4 {[%clk 0:00:02]} 46. a4 {[%clk 0:00:13]}  Kf5 {[%clk 0:00:03]} 47. Bh6 {[%clk 0:00:11]}  Rd3+ {[%clk 0:00:03]} 48. Kh4 {[%clk 0:00:11]}  Rxc3 {[%clk 0:00:02]} 49. g3 {[%clk 0:00:10]}  Rd3 {[%clk 0:00:03]} 50. Kxh5 {[%clk 0:00:08]}  Rd1 {[%clk 0:00:03]} 51. g4+ {[%clk 0:00:08]}  Ke6 {[%clk 0:00:03]} 52. g5 {[%clk 0:00:08]}  Bf3+ {[%clk 0:00:02]} 53. Kh4 {[%clk 0:00:08]}  Rh1+ {[%clk 0:00:03]} 54. Kg3 {[%clk 0:00:09]}  Be4 {[%clk 0:00:03]} 55. Kf4 {[%clk 0:00:09]}  Re1 {[%clk 0:00:03]} 56. Bf8 {[%clk 0:00:09]}  c4 {[%clk 0:00:03]} 57. d7+ {[%clk 0:00:09]}  Kxd7 {[%clk 0:00:03]} 58. Rd6+ {[%clk 0:00:09]}  Kc7 {[%clk 0:00:04]} 59. Rd4 {[%clk 0:00:10]}  Bd3 {[%clk 0:00:04]} 60. g6 {[%clk 0:00:08]}  Rf1+ {[%clk 0:00:04]} 61. Ke3 {[%clk 0:00:08]}  Rxf8 {[%clk 0:00:05]} 62. g7 {[%clk 0:00:07]}  Rg8 {[%clk 0:00:05]} 63. a5 {[%clk 0:00:08]}  Kc6 {[%clk 0:00:05]} 64. Rf4 {[%clk 0:00:08]}  Kb5 {[%clk 0:00:06]} 65. Rf6 {[%clk 0:00:09]}  Kxa5 {[%clk 0:00:06]} 0-1


[Site "https://www.chess.com"]

[Event "Titled Tuesday Blitz March 22 Early 2022"]
[White "Borodavkin, Anatoly"]
[Black "Horcajuelo Rocamora, Martin"]
[WhiteFideId "14150662"]
[BlackFideId "24573027"]
[WhiteElo "1845"]
[BlackElo "1706"]
[Result "1/2-1/2"]
[Round "10"]
[TimeControl "180+1"]
[Date "2022.03.22"]
[WhiteClock "0:00:03"]
[BlackClock "0:00:09"]

1. e4 {[%clk 0:03:00]}  e5 {[%clk 0:02:57]} 2. Nf3 {[%clk 0:03:00]}  Nc6 {[%clk 0:02:54]} 3. Bb5 {[%clk 0:02:59]}  Nf6 {[%clk 0:02:54]} 4. O-O {[%clk 0:02:59]}  Nxe4 {[%clk 0:02:52]} 5. d4 {[%clk 0:02:56]}  Nd6 {[%clk 0:02:51]} 6. Bxc6 {[%clk 0:02:54]}  dxc6 {[%clk 0:02:52]} 7. dxe5 {[%clk 0:02:55]}  Nf5 {[%clk 0:02:52]} 8. Qxd8+ {[%clk 0:02:54]}  Kxd8 {[%clk 0:02:53]} 9. Nc3 {[%clk 0:02:49]}  Bd7 {[%clk 0:02:39]} 10. Bf4 {[%clk 0:02:23]}  Kc8 {[%clk 0:02:37]} 11. Rfd1 {[%clk 0:02:18]}  h6 {[%clk 0:02:32]} 12. h3 {[%clk 0:02:14]}  Be7 {[%clk 0:02:16]} 13. Rd3 {[%clk 0:02:04]}  b6 {[%clk 0:02:08]} 14. Rad1 {[%clk 0:02:03]}  Be6 {[%clk 0:02:06]} 15. b3 {[%clk 0:01:59]}  Kb7 {[%clk 0:02:03]} 16. g4 {[%clk 0:01:39]}  Nh4 {[%clk 0:01:52]} 17. Nd4 {[%clk 0:01:36]}  Bd5 {[%clk 0:01:29]} 18. Bg3 {[%clk 0:01:15]}  Rad8 {[%clk 0:01:19]} 19. Nxd5 {[%clk 0:01:06]}  cxd5 {[%clk 0:01:20]} 20. Bxh4 {[%clk 0:01:05]}  Bxh4 {[%clk 0:01:15]} 21. Nf5 {[%clk 0:01:05]}  Bg5 {[%clk 0:01:14]} 22. Rxd5 {[%clk 0:01:01]}  Rxd5 {[%clk 0:01:13]} 23. Rxd5 {[%clk 0:01:01]}  g6 {[%clk 0:01:14]} 24. Ng3 {[%clk 0:00:58]}  Bf4 {[%clk 0:01:11]} 25. Ne2 {[%clk 0:00:48]}  Bg5 {[%clk 0:00:54]} 26. f4 {[%clk 0:00:46]}  Bh4 {[%clk 0:00:54]} 27. Kg2 {[%clk 0:00:33]}  h5 {[%clk 0:00:52]} 28. Nd4 {[%clk 0:00:22]}  hxg4 {[%clk 0:00:51]} 29. hxg4 {[%clk 0:00:20]}  Be7 {[%clk 0:00:50]} 30. Rd7 {[%clk 0:00:20]}  Re8 {[%clk 0:00:40]} 31. c4 {[%clk 0:00:15]}  a6 {[%clk 0:00:37]} 32. e6 {[%clk 0:00:13]}  f6 {[%clk 0:00:28]} 33. f5 {[%clk 0:00:12]}  g5 {[%clk 0:00:27]} 34. Kf3 {[%clk 0:00:11]}  Bd6 {[%clk 0:00:21]} 35. Ne2 {[%clk 0:00:09]}  Rh8 {[%clk 0:00:20]} 36. Rf7 {[%clk 0:00:08]}  Rh3+ {[%clk 0:00:19]} 37. Kg2 {[%clk 0:00:08]}  Rh2+ {[%clk 0:00:19]} 38. Kf3 {[%clk 0:00:07]}  Be5 {[%clk 0:00:20]} 39. b4 {[%clk 0:00:03]}  Rh3+ {[%clk 0:00:19]} 40. Kg2 {[%clk 0:00:03]}  Rh2+ {[%clk 0:00:18]} 41. Kf3 {[%clk 0:00:04]}  Rh3+ {[%clk 0:00:18]} 42. Kg2 {[%clk 0:00:04]}  Rh4 {[%clk 0:00:16]} 43. Kf3 {[%clk 0:00:04]}  Rh8 {[%clk 0:00:16]} 44. c5 {[%clk 0:00:04]}  bxc5 {[%clk 0:00:14]} 45. bxc5 {[%clk 0:00:04]}  Kc6 {[%clk 0:00:15]} 46. Nc1 {[%clk 0:00:01]}  Kd5 {[%clk 0:00:11]} 47. Nd3 {[%clk 0:00:01]}  Rh3+ {[%clk 0:00:11]} 48. Ke2 {[%clk 0:00:02]}  Rh2+ {[%clk 0:00:10]} 49. Kf3 {[%clk 0:00:02]}  Rh3+ {[%clk 0:00:10]} 50. Ke2 {[%clk 0:00:02]}  Rh2+ {[%clk 0:00:10]} 51. Kf3 {[%clk 0:00:03]}  Rh3+ {[%clk 0:00:09]} 1/2-1/2


[Site "https://www.chess.com"]